bitfinex-derivatives/quotes_ETHF0:USTF0_20251107
["timestamp","ask_amount","ask_price","bid_price","bid_amount"]
[1762475776393,0.48727,3326.5,3326.3,3.2078]
[1762475776594,3.2078,3327.1,3326.4,9.6073]
[1762475776898,3.2078,3327.6,3326.8,3.2078]
[1762475777099,3.21070954,3327.6,3326.8,3.21154987]
[1762475777303,0.48718,3327.1,3326.9,9.43051013]
[1762475777501,0.48718,3327.1,3327.0,9.424]
[1762475777799,0.48718,3327.1,3326.9,0.00451013]
[1762475777999,0.4872,3326.9,3326.8,0.00374987]
[1762475778300,0.48738,3325.8,3325.6,3.3573]
[1762475778494,0.48738,3325.8,3325.7,3.391]
[1762475779100,0.00451013,3327.5,3326.1,0.48732]
[1762475779101,0.48727,3326.5,3326.1,0.48732]
[1762475779291,0.4873,3326.3,3326.1,3.2078]
[1762475779687,0.4873,3326.3,3325.7,0.00337211]
[1762475779688,0.48737,3325.8,3325.7,0.00337211]
[1762475779887,3.69517,3325.8,3325.7,0.00337211]
[1762475780098,0.48741,3325.5,3325.4,0.00451013]
[1762475780604,3.21231013,3325.8,3325.4,0.00451013]
[1762475780896,0.4874,3325.6,3325.4,0.49193013]
[1762475781094,3.69968013,3325.8,3325.4,0.49468929]
[1762475781301,0.48739,3325.7,3325.5,0.48741]
[1762475781499,0.48738,3325.7,3325.5,0.4874]
[1762475781697,0.00451013,3325.8,3325.7,0.48738]
[1762475782601,0.4873,3326.4,3325.6,0.1873]
[1762475782795,0.4873,3326.3,3326.1,0.48732]
[1762475782998,0.48728,3326.4,3326.3,0.4873]
[1762475783199,3.81535001,3326.6,3326.3,0.4873]
[1762475783503,3.32808001,3326.6,3326.3,0.4873]
[1762475783705,0.48727,3326.5,3326.4,0.48728]
[1762475783905,0.48729,3326.4,3326.2,9.441]
[1762475784603,3.81532,3326.6,3326.4,0.48727]
[1762475784805,3.69506,3326.6,3326.4,0.48727]
[1762475785398,0.48727,3326.5,3326.2,9.441]
[1762475785600,3.2078,3326.6,3326.2,9.441]
[1762475785804,3.69505,3326.6,3326.4,0.48728]
[1762475786005,3.69505,3326.6,3326.5,9.43]
[1762475786303,3.2078,3326.6,3326.5,9.43]
[1762475786502,0.00451013,3326.8,3326.6,0.48725]
[1762475787097,0.00451013,3326.8,3326.5,0.12023999]
[1762475787303,0.48726,3326.6,3326.4,0.1873]
[1762475787605,0.48725,3326.6,3326.5,3.931]
[1762475787809,3.69504,3326.7,3326.5,3.931]
[1762475788311,0.48725,3326.6,3326.5,3.931]
[1762475788706,0.00451013,3326.8,3326.1,0.12023999]
[1762475789004,0.00451013,3326.8,3326.7,0.48724]
[1762475789805,0.49001954,3327.6,3327.2,0.1873]
[1762475790005,0.00290954,3327.6,3327.5,0.48712]
[1762475790706,0.00290954,3327.6,3327.5,0.60732]
[1762475791012,0.00290954,3327.6,3327.5,0.1202]
[1762475791311,0.00290954,3327.6,3327.3,3.2078]
[1762475791504,0.00290954,3327.6,3327.4,9.436]
[1762475791814,0.00290954,3327.6,3327.5,0.48712]
[1762475792512,0.00290954,3327.6,3327.5,0.60732]
[1762475792712,0.00290954,3327.6,3327.5,0.1202]
[1762475793306,0.49001954,3327.6,3327.5,0.1202]
[1762475793504,0.00290954,3327.6,3327.5,9.5482]
[1762475794016,0.00290954,3327.6,3327.5,10.03532]
[1762475794411,0.00290954,3327.6,3327.2,0.19181013]
[1762475794609,0.49001954,3327.6,3327.3,3.2078]
[1762475794910,0.49001954,3327.6,3327.4,3.519]
[1762475795111,0.49001954,3327.6,3327.4,9.421]
[1762475795310,0.00290954,3327.6,3327.5,0.48712]
[1762475795517,0.00290954,3327.6,3327.5,0.80092]
[1762475795815,0.00290954,3327.6,3327.3,3.2078]
[1762475796003,0.49001954,3327.6,3327.5,9.418]
[1762475796204,0.49001954,3327.6,3327.5,9.90512]
[1762475796608,0.49001954,3327.6,3327.3,3.2078]
[1762475796803,0.48715,3327.3,3327.2,0.00451013]
[1762475797015,0.00290954,3327.6,3327.2,3.89151013]
[1762475797210,0.00290954,3327.6,3327.5,0.48712]
[1762475797614,0.00290954,3327.6,3327.5,8.57812]
[1762475798311,0.00290954,3327.6,3327.2,0.00451013]
[1762475798513,0.48715,3327.3,3327.2,3.79451013]
[1762475798914,0.48715,3327.4,3327.3,0.48714]
[1762475799114,0.48715,3327.3,3327.2,3.79451013]
[1762475799712,3.2078,3327.5,3327.4,0.48714]
[1762475800016,0.48715,3327.3,3327.2,0.00451013]
[1762475800712,0.82435,3327.3,3327.2,0.00451013]
[1762475801221,0.3372,3326.8,3326.6,0.48725]
[1762475801417,0.48724,3326.7,3326.4,0.1893]
[1762475801612,3.2078,3327.1,3326.6,0.48724]
[1762475801816,0.48724,3326.7,3326.6,0.48724]
[1762475802318,0.48727,3326.5,3326.4,0.1893]
[1762475802519,0.48728,3326.4,3326.3,0.00451013]
[1762475802713,0.48725,3326.7,3326.3,9.40951013]
[1762475802911,0.12024,3327.0,3326.3,9.40951013]
[1762475802912,0.48728,3326.5,3326.4,0.48728]
[1762475803218,0.48728,3326.4,3326.3,0.00451013]
[1762475803720,0.48728,3326.4,3326.3,0.49181013]
[1762475803920,0.48728,3326.4,3326.3,0.00451013]
[1762475804517,0.82448,3326.4,3326.3,0.00451013]
[1762475804721,0.48737,3325.8,3325.7,3.2078]
[1762475805326,0.48741,3325.5,3325.2,8.312]
[1762475805526,0.82461,3325.5,3324.9,3.2078]
[1762475805823,0.82461,3325.5,3325.1,0.00451013]
[1762475806124,0.00451013,3325.8,3325.6,0.4874]
[1762475806323,0.00451013,3325.8,3325.7,0.5146]
[1762475806919,0.00451013,3325.8,3325.7,0.1893]
[1762475807718,0.49189013,3325.8,3325.6,0.4874]
[1762475807924,0.00451013,3325.8,3325.6,0.4874]
[1762475808227,0.48739,3325.7,3325.5,9.88041]
[1762475808417,0.00451013,3325.8,3325.7,1.00199]
[1762475808927,0.00451013,3325.8,3325.7,10.39299]
[1762475809421,0.00451013,3325.8,3325.7,13.60079]
[1762475809924,0.00451013,3325.8,3325.7,13.72107]
[1762475811020,0.00451013,3325.8,3325.7,13.71107]
[1762475811930,0.00451013,3325.8,3325.7,13.22368]
[1762475812327,0.48739,3325.7,3325.5,0.48741]
[1762475812522,0.00451013,3325.8,3325.7,0.48738]
[1762475812727,0.00451013,3325.8,3325.7,4.02048]
[1762475813124,0.00451013,3325.8,3325.7,4.14076]
[1762475815336,0.00451013,3325.8,3325.7,13.50376]
[1762475816631,0.1007,3327.1,3327.0,1.00179]
[1762475816632,0.12028001,3327.1,3327.0,1.00179]
[1762475816834,3.2078,3327.7,3327.1,0.48718]
[1762475817132,0.48718,3327.1,3327.0,9.5513]
[1762475817335,3.2078,3327.3,3326.4,0.1893]
[1762475817534,3.2078,3326.9,3326.5,0.49177013]
[1762475817737,3.2078,3326.9,3326.6,8.404]
[1762475818040,0.48725,3326.6,3326.5,0.00451013]
[1762475818239,0.12024,3326.8,3326.5,9.37151013]
[1762475818536,0.60745,3326.9,3326.8,0.48721]
[1762475818935,0.48721,3326.9,3326.8,0.48721]
[1762475819239,0.12024,3327.0,3326.9,0.3253]
[1762475819440,0.48719,3327.0,3326.9,0.81251]
[1762475819737,0.82445,3326.6,3326.5,0.00451013]
[1762475819932,4.03225,3326.6,3326.5,1.013e-05]
[1762475820436,0.48736,3325.9,3325.8,3.2078]
[1762475820636,0.48741,3325.6,3325.5,7.949]
[1762475820832,0.48741,3325.5,3325.4,9.37175916]
[1762475821035,0.48729,3326.4,3326.1,0.48733]
[1762475821236,0.12026,3326.9,3326.8,0.48722]
[1762475821537,0.00451013,3327.2,3326.4,3.3971]
[1762475821740,3.2078,3326.9,3326.5,9.37951013]
[1762475822040,4.03225,3326.6,3326.5,0.00451013]
[1762475822434,4.15249,3326.6,3326.5,0.00451013]
[1762475823935,4.03225,3326.6,3326.5,0.00451013]
[1762475824441,0.48741,3325.5,3325.4,0.00275916]
[1762475825335,3.32808001,3325.7,3325.4,0.00275916]
[1762475825336,0.48734,3326.0,3325.8,0.48736]
[1762475825533,3.2078,3326.1,3325.5,3.2078]
[1762475825939,3.2078,3326.1,3325.9,0.48736]
[1762475826438,0.48737,3325.8,3325.7,0.1921]
[1762475826638,3.32806,3326.1,3325.4,0.00275916]
[1762475826837,0.48741,3325.5,3325.4,0.49017916]
[1762475827034,0.48741,3325.5,3325.4,0.00275916]
[1762475827240,0.78751,3325.5,3325.4,0.00275916]
[1762475827434,0.48741,3325.5,3325.4,0.00275916]
[1762475827639,0.12028001,3325.7,3325.5,0.48741]
[1762475827839,0.12028001,3325.7,3325.6,0.4874]
[1762475828045,3.2078,3326.1,3325.4,0.00275916]
[1762475828235,0.78751,3325.5,3325.4,0.00275916]
[1762475828936,0.78751,3325.5,3322.6,8.65503926]
[1762475828937,0.4876,3324.2,3324.1,3.2078]
[1762475829738,0.3001,3324.2,3324.1,3.2078]
[1762475829940,0.00215065,3324.2,3324.1,3.21049258]
[1762475830140,0.30225065,3324.2,3324.1,3.21049258]
[1762475830338,0.30225065,3324.2,3324.1,0.00269258]
[1762475830741,0.00215065,3324.2,3324.1,0.00269258]
[1762475831439,0.30225065,3324.2,3324.1,0.00269258]
[1762475831640,0.48765,3323.9,3323.8,0.00302041]
[1762475831836,3.99555,3323.9,3323.8,2.041e-05]
[1762475832036,4.11589,3323.9,3323.8,2.041e-05]
[1762475832237,2.51611498,3323.9,3323.8,0.78588041]
[1762475832447,3.32814,3326.1,3325.0,0.1921]
[1762475832739,3.2078,3326.6,3325.7,0.48738]
[1762475832943,0.48734,3326.1,3325.9,3.2078]
[1762475833146,3.2078,3326.5,3325.9,3.2078]
[1762475833340,0.00252606,3326.5,3325.9,3.33062601]
[1762475833540,0.00703619,3326.5,3325.9,3.33513614]
[1762475833742,0.00703619,3326.5,3326.4,0.48728]
[1762475833949,0.48728,3326.4,3326.3,3.2078]
[1762475834244,0.00703619,3326.5,3326.3,3.69509]
[1762475835142,0.00703619,3326.5,3326.4,0.1921]
[1762475835335,3.2078,3328.2,3327.4,0.48713]
[1762475835538,3.2078,3328.2,3327.4,3.2078]
[1762475835740,0.48705,3328.0,3327.8,3.2078]
[1762475836249,0.49061944,3328.0,3327.8,3.2078]
[1762475836546,0.48709,3327.8,3327.6,0.00451013]
[1762475837042,0.48709,3327.8,3327.4,3.2078]
[1762475837043,3.2078,3327.7,3327.0,3.2078]
[1762475837350,0.48715,3327.3,3327.0,3.2078]
[1762475837551,0.48718,3327.2,3327.0,3.2078]
[1762475837844,0.00355944,3328.0,3327.1,0.1921]
[1762475838146,0.49060944,3328.0,3327.8,3.2078]
[1762475838745,0.00355944,3328.0,3327.8,3.88697]
[1762475839248,3.2078,3330.2,3329.0,0.48689]
[1762475839443,3.2078,3330.2,3329.2,3.2078]
[1762475839848,3.2078,3329.8,3329.2,3.2078]
[1762475840046,3.21157647,3329.8,3329.3,0.48686]
[1762475840244,0.00377647,3329.8,3329.3,3.2078]
[1762475840445,0.48683,3329.6,3329.3,3.2078]
[1762475840644,0.48684,3329.5,3329.3,3.2078]
[1762475841248,0.12391647,3329.8,3329.3,3.2078]
[1762475841544,0.48683,3329.5,3329.3,3.2078]
[1762475842541,0.12391647,3329.8,3328.2,3.2078]
[1762475842542,0.487,3328.3,3328.2,3.2078]
[1762475842740,3.2078,3329.3,3328.2,3.2078]
[1762475842947,3.2078,3329.3,3328.3,0.12016]
[1762475843250,0.487,3328.4,3328.2,3.2078]
[1762475843650,0.487,3328.4,3328.2,3.21072188]
[1762475843854,0.48698,3328.5,3328.2,3.21072188]
[1762475844049,0.48695,3328.7,3328.2,3.21072188]
[1762475844252,0.48695,3328.7,3328.5,0.1921]
[1762475844753,0.12016,3329.2,3328.5,0.1921]
[1762475845247,3.2078,3329.3,3328.5,0.1921]
[1762475845450,3.2078,3329.3,3328.6,0.12016]
[1762475845654,3.69467,3329.3,3328.5,0.1921]
[1762475845850,3.2078,3329.3,3329.1,0.48687]
[1762475846045,3.2078,3329.3,3328.7,3.2078]
[1762475846447,3.2078,3329.3,3328.7,3.69474]
[1762475846750,0.48685,3329.4,3329.2,0.67897]
[1762475846953,0.48682,3329.6,3329.2,0.1921]
[1762475847153,0.00377647,3329.8,3329.3,0.48685]
[1762475847350,3.2078,3329.4,3329.0,0.12014]
[1762475847547,0.48692,3328.9,3328.7,3.2078]
[1762475847747,3.2078,3329.4,3328.7,3.2078]
[1762475848049,0.48689,3329.1,3328.9,0.48691]
[1762475848252,0.12014,3329.7,3328.7,3.32796]
[1762475848453,0.00377647,3329.8,3328.7,3.2078]
[1762475848748,0.00377647,3329.8,3328.5,0.1921]
[1762475848749,0.00377647,3329.8,3329.2,0.1921]
[1762475848952,0.49056647,3329.8,3329.6,0.48681]
[1762475849140,0.00377647,3329.8,3329.2,0.1921]
[1762475849345,0.4868,3329.7,3329.2,0.1921]
[1762475849544,0.00377647,3329.8,3328.8,0.48692]
[1762475849746,3.2078,3329.5,3328.7,3.2078]
[1762475849953,0.48692,3328.9,3328.7,3.32794]
[1762475850341,3.2078,3329.5,3328.7,3.32794]
[1762475850546,3.2078,3329.5,3329.1,0.48688]
[1762475850751,3.2078,3329.5,3329.2,0.1921]
[1762475851153,0.48687,3329.3,3329.2,0.67897]
[1762475851348,0.48686,3329.4,3329.2,0.1921]
[1762475851854,0.12393647,3329.8,3329.2,0.1921]
[1762475852046,0.48684,3329.4,3329.2,0.1921]
[1762475853755,0.12393647,3329.8,3329.3,0.48684]
[1762475853956,0.48683,3329.5,3329.3,0.48684]
[1762475854254,0.48684,3329.4,3329.3,0.48686]
[1762475854452,0.48686,3329.3,3329.2,0.70054]
[1762475855557,0.48686,3329.3,3329.2,1.18741]
[1762475856060,0.00377647,3329.8,3329.2,1.18741]
[1762475856061,0.00377647,3329.8,3329.2,0.31224]
[1762475856354,0.48681,3329.6,3329.5,3.69463]
[1762475857254,0.386,3329.6,3329.3,0.12014]
[1762475857453,3.2078,3329.6,3328.8,0.186]
[1762475857655,0.48689,3329.1,3329.0,0.3778]
[1762475858048,0.4869,3329.0,3328.9,0.48691]
[1762475858350,0.49055647,3329.8,3329.7,0.4868]
[1762475858550,0.00377647,3329.8,3329.7,0.8646]
[1762475859353,0.00377647,3329.8,3329.7,0.98472]
[1762475859649,3.2078,3331.2,3329.5,3.2078]
[1762475859650,3.2078,3331.4,3330.0,0.212]
[1762475859848,0.48662,3331.0,3330.8,0.48662]
[1762475860057,3.2078,3331.0,3330.3,3.2078]
[1762475860258,0.48669,3330.5,3330.3,3.69451]
[1762475860655,0.48937241,3330.5,3330.3,3.81708479]
[1762475860953,0.00268241,3330.5,3330.3,3.21027479]
[1762475861150,0.00268241,3330.5,3330.4,0.3778]
[1762475861349,0.8385,3330.4,3330.3,0.00247479]
[1762475861547,3.21048241,3330.5,3329.3,0.48685]
[1762475861752,0.48686,3329.3,3328.7,3.2078]
[1762475862153,3.2078,3329.9,3328.7,3.2078]
[1762475862357,3.2078,3329.9,3328.9,0.12016]
[1762475862552,0.00268241,3330.5,3329.7,3.2078]
[1762475862861,0.48674,3330.1,3329.9,0.69876]
[1762475863061,0.00268241,3330.5,3330.3,0.4867]
[1762475863259,0.00268241,3330.5,3330.3,3.6945]
[1762475863557,0.00268241,3330.5,3330.3,3.8146]
[1762475863756,0.00268241,3330.5,3330.3,3.6945]
[1762475864348,0.00450329,3330.7,3330.6,0.69867]
[1762475864760,3.2078,3331.9,3331.3,0.48657]
[1762475865059,0.48647,3332.0,3331.8,0.48648]
[1762475865260,0.48648,3331.9,3331.8,0.00286338]
[1762475865662,0.00292246,3332.0,3331.8,0.48934338]
[1762475865959,0.00292246,3332.0,3331.8,0.00286338]
[1762475866264,0.48648,3331.9,3331.8,0.00286338]
[1762475866655,3.69428,3331.9,3331.8,0.00286338]
[1762475867059,3.81434,3331.9,3331.8,0.00286338]
[1762475868961,3.69428,3331.9,3331.8,0.00286338]
[1762475869160,0.48669,3330.5,3330.3,3.2078]
[1762475869361,0.48669,3330.5,3330.3,3.69451]
[1762475869656,0.48669,3330.5,3329.9,0.69877]
[1762475869657,0.48675,3330.1,3329.9,0.69877]
[1762475869853,0.48675,3330.1,3329.9,0.212]
[1762475870058,0.48675,3330.1,3329.9,0.21542903]
[1762475870256,0.00450329,3330.3,3329.9,0.21542903]
[1762475870257,0.00450329,3330.3,3330.1,0.48674]
[1762475870659,0.48674,3330.1,3329.9,3.90999903]
[1762475870855,0.48674,3330.1,3330.0,0.12012]
[1762475871363,0.48674,3330.1,3329.9,3.21122903]
[1762475871757,0.49122329,3330.3,3330.0,0.48674]
[1762475871956,0.49121329,3330.3,3330.1,0.48674]
[1762475872458,0.48674,3330.1,3329.9,3.21122903]
[1762475872756,0.48677,3329.9,3329.7,0.00450329]
[1762475873761,0.48687,3329.2,3329.1,0.12012]
[1762475873955,0.48692,3328.9,3328.7,3.2078]
[1762475874164,0.48692,3328.9,3328.7,3.2101487]
[1762475874560,0.48692,3328.9,3328.7,0.0023487]
[1762475874856,0.12403676,3329.2,3328.7,0.0023487]
[1762475875052,0.00387676,3329.2,3328.9,0.4869]
[1762475875359,0.00387676,3329.2,3328.8,0.33216]
[1762475875757,0.48691,3329.0,3328.8,0.33216]
[1762475876350,0.48693,3328.8,3328.7,0.0023487]
[1762475876553,0.48705,3328.0,3327.9,3.2078]
[1762475877054,0.48703,3328.1,3327.9,3.2078]
[1762475877353,0.48703,3328.1,3327.9,3.32798]
[1762475877550,0.00450329,3328.3,3328.1,0.48703]
[1762475878159,0.00387676,3329.2,3328.8,0.212]
[1762475878555,0.00387676,3329.2,3328.8,0.33216]
[1762475878954,0.00387676,3329.2,3329.0,0.4869]
[1762475879461,0.48689,3329.1,3329.0,0.12016]
[1762475879661,0.00387676,3329.2,3329.1,0.48689]
[1762475880258,0.00387676,3329.2,3329.1,8.48689]
[1762475880459,0.00101338,3329.4,3329.3,0.48686]
[1762475880957,0.00101338,3329.4,3329.0,3.2078]
[1762475881259,0.00101338,3329.4,3329.2,0.48687]
[1762475881462,0.00363942,3329.4,3329.2,0.48687]
[1762475881768,0.48676,3330.0,3329.6,0.212]
[1762475881966,0.48677,3329.9,3329.7,3.6946]
[1762475882360,0.48677,3329.9,3329.8,0.14591728]
[1762475883066,0.48939395,3329.9,3329.8,0.14591728]
[1762475884058,0.48939395,3329.9,3328.8,0.21650329]
[1762475884059,0.48686,3329.3,3329.2,3.2078]
[1762475884368,0.48692,3328.9,3328.8,0.00450329]
[1762475884664,0.48703,3328.1,3328.0,0.212]
[1762475884872,0.48703,3328.1,3327.9,3.21016906]
[1762475885055,3.2078,3328.7,3327.9,3.21016906]
[1762475885260,0.48705,3328.0,3327.9,0.00236906]
[1762475885456,3.2078,3328.3,3327.5,3.32798]
[1762475885457,0.48711,3327.6,3327.5,3.2078]
[1762475885665,3.2078,3327.9,3327.6,0.00450329]
[1762475885862,3.2078,3327.9,3326.4,0.212]
[1762475886063,0.1226,3328.0,3326.4,0.212]
[1762475886064,0.48723,3326.8,3326.4,0.69927]
[1762475886264,0.48725,3326.7,3326.4,0.69928]
[1762475886463,0.00236203,3326.7,3326.6,0.48725]
[1762475887964,0.00236203,3326.7,3326.6,0.60748999]
[1762475888470,0.00236203,3326.7,3326.6,0.12023999]
[1762475888862,0.48961203,3326.7,3326.5,0.12023999]
[1762475889058,0.48961203,3326.7,3326.4,0.00320103]
[1762475889269,0.48727,3326.5,3326.4,0.00320103]
[1762475889863,0.48960203,3326.7,3326.4,0.71287103]
[1762475890262,0.48960203,3326.7,3326.4,0.00320103]
[1762475890263,0.48726,3326.6,3326.4,0.00320103]
[1762475890669,0.6075,3326.6,3326.4,0.00320103]
[1762475891066,9.22216203,3326.7,3325.7,0.12023999]
[1762475891372,0.48745,3325.3,3325.1,3.2078]
[1762475891564,3.2078,3325.9,3324.8,0.2224]
[1762475891765,0.48746,3325.2,3325.0,0.48748]
[1762475891964,0.48748,3325.1,3324.9,3.2078]
[1762475892172,0.48748,3325.1,3324.9,3.21046636]
[1762475893569,0.1203,3325.4,3324.9,3.69795636]
[1762475894069,0.48746,3325.2,3324.9,3.69795636]
[1762475894266,0.48748,3325.1,3324.9,3.21046636]
[1762475894467,0.48763,3324.0,3323.9,3.2078]
[1762475894775,0.48774,3323.3,3322.8,0.48781]
[1762475895068,0.4878,3322.9,3322.7,3.2078]
[1762475895263,0.48777,3323.1,3322.8,0.12036]
[1762475895569,0.48779,3323.0,3322.8,0.12283999]
[1762475895768,0.48779,3323.0,3322.8,0.00247999]
[1762475896168,0.00210807,3323.1,3322.8,0.00247999]
[1762475896369,0.00210807,3323.1,3322.9,0.48779]
[1762475896678,3.2078,3323.5,3323.4,0.48772]
[1762475896867,3.2078,3323.5,3322.8,0.00247999]
[1762475897067,3.2078,3323.5,3322.9,0.48779]
[1762475897268,3.2078,3323.5,3322.9,0.12036]
[1762475897574,3.20999025,3323.5,3322.9,0.12036]
[1762475897874,0.4878,3322.9,3322.8,0.00247999]
[1762475898581,3.2078,3323.1,3322.8,0.00247999]
[1762475898782,0.48778,3323.0,3322.8,0.00247999]
[1762475899276,0.12038,3322.9,3322.8,0.00247999]
[1762475901178,0.12038,3322.9,3322.0,0.12038]
[1762475901369,0.0786,3323.2,3322.0,0.12038]
[1762475901370,3.2078,3322.6,3322.0,0.12038]
[1762475901676,0.48791,3322.2,3322.0,0.6083]
[1762475902078,0.48791,3322.2,3322.0,0.61210835]
[1762475902279,0.48791,3322.2,3322.0,0.12418835]
[1762475902476,0.48791,3322.2,3322.0,0.00380835]
[1762475902677,3.21231101,3322.6,3322.0,0.49172835]
[1762475902875,3.21231101,3322.6,3322.0,0.00380835]
[1762475903376,0.4879,3322.2,3322.0,0.49172835]
[1762475903774,0.00451101,3322.6,3322.2,0.48789]
[1762475904078,0.48787,3322.4,3322.2,0.2224]
[1762475904285,0.00451101,3322.6,3322.4,0.48786]
[1762475905074,0.00451101,3322.6,3322.5,0.1204]
[1762475905275,0.48774,3323.3,3322.5,0.1204]
[1762475905474,3.20999025,3323.5,3322.9,0.48779]
[1762475905673,0.48776,3323.2,3323.0,0.48777]
[1762475905874,0.48773,3323.4,3323.2,0.48775]
[1762475906174,3.20999025,3323.5,3322.9,0.2224]
[1762475906375,3.33486126,3323.5,3322.9,0.22691101]
[1762475906575,3.33486126,3323.5,3323.0,0.48778]
[1762475906772,0.48772,3323.4,3323.1,0.48776]
[1762475906978,3.33486126,3323.5,3322.9,0.22691101]
[1762475907178,0.48777,3323.1,3323.0,0.48778]
[1762475907880,0.48775,3323.3,3322.9,0.22691101]
[1762475908083,0.48777,3323.1,3323.0,0.48778]
[1762475908283,0.48778,3323.0,3322.9,0.00451101]
[1762475908784,0.60816,3323.0,3322.9,0.00451101]
[1762475909572,0.48777,3323.1,3323.0,0.48778]
[1762475909977,3.21450126,3323.5,3322.9,0.00451101]
[1762475909978,0.48778,3323.0,3322.9,0.00451101]
[1762475910379,0.48775,3323.2,3322.9,0.00451101]
[1762475910584,0.48778,3323.0,3322.9,0.49230101]
[1762475910982,0.48778,3323.0,3322.9,0.00451101]
[1762475911485,0.48778,3323.0,3322.9,0.49231101]
[1762475912684,0.60814,3323.2,3323.1,0.48777]
[1762475912882,0.48778,3323.0,3322.9,0.00451101]
[1762475913085,0.83458,3323.0,3322.9,1.01e-06]
[1762475913281,0.48791,3322.1,3321.5,3.2078]
[1762475913484,0.83471,3322.1,3321.1,3.2078]
[1762475913689,0.83471,3322.1,3321.5,0.488]
[1762475913981,0.95511,3322.1,3321.4,0.12038]
[1762475914187,0.95511,3322.1,3321.1,3.2078]
[1762475914386,0.1204,3322.1,3321.2,0.1204]
[1762475914579,3.2078,3321.7,3321.5,0.48799]
[1762475914783,3.2078,3321.7,3321.3,0.48802]
[1762475914983,0.48803,3321.3,3321.2,0.1204]
[1762475915386,0.48803,3321.3,3321.2,0.00228919]
[1762475915589,0.83483,3321.3,3321.2,0.00228919]
[1762475917190,0.48799,3321.6,3321.3,0.48802]
[1762475917495,0.48802,3321.4,3321.2,0.49031919]
[1762475917692,0.79302,3321.4,3321.3,0.12042]
[1762475917996,0.3142,3321.3,3321.2,0.00228919]
[1762475918396,0.60846,3321.4,3321.2,0.00228919]
[1762475918599,3.81626,3321.4,3321.2,0.00228919]
[1762475918792,0.80223,3321.3,3321.2,0.00228919]
[1762475919597,0.80223,3321.3,3318.4,2.675582]
[1762475919598,0.42585148,3321.3,3319.9,3.2078]
[1762475919798,3.2078,3320.5,3319.9,3.2078]
[1762475919999,0.48822,3320.0,3319.9,3.69603]
[1762475920300,0.48822,3320.0,3319.9,3.2078]
[1762475920501,0.4908986,3320.0,3319.9,3.210152]
[1762475921201,0.8050986,3320.0,3319.9,0.002352]
[1762475921404,0.0026786,3320.0,3319.9,0.002352]
[1762475921905,0.0026786,3320.0,3319.9,0.302152]
[1762475922100,0.0026786,3320.0,3319.9,0.422632]
[1762475922299,0.0026786,3320.0,3319.9,0.122832]
[1762475922597,0.0026786,3320.0,3319.9,8.422632]
[1762475922802,4.60035226,3321.8,3320.1,0.1819]
[1762475922803,3.2078,3321.4,3320.1,0.1819]
[1762475923002,0.48814,3320.6,3320.4,3.69595]
[1762475923202,3.2078,3321.4,3320.4,3.2078]
[1762475923401,3.2078,3321.2,3320.6,0.48813]
[1762475924002,3.21137283,3321.2,3321.0,0.48807]
[1762475924397,0.00357283,3321.2,3321.0,0.48807]
[1762475924597,0.00357283,3321.2,3321.1,0.12043999]
[1762475924797,0.00357283,3321.2,3321.1,0.60849999]
[1762475925002,0.00357283,3321.2,3321.1,0.12043999]
[1762475925198,0.49161283,3321.2,3321.1,0.60849999]
[1762475925602,0.49161283,3321.2,3321.1,0.12043999]
[1762475925901,0.48807,3321.0,3320.9,3.2078]
[1762475926099,0.12044,3321.1,3320.5,3.2078]
[1762475926492,0.48813,3320.6,3320.5,3.2078]
[1762475926901,0.00357283,3321.2,3320.5,3.2078]
[1762475927099,0.48811,3320.8,3320.7,0.48812]
[1762475927504,0.48813,3320.6,3320.5,3.32825999]
[1762475928806,0.48813,3320.6,3320.5,3.81640999]
[1762475929006,0.48813,3320.6,3320.5,0.48815]
[1762475929208,0.48815,3320.5,3320.4,0.12045999]
[1762475929504,0.48813,3320.6,3320.5,0.48814]
[1762475930202,0.12046,3321.0,3320.4,0.12045999]
[1762475930396,0.00357283,3321.2,3321.1,0.48806]
[1762475931609,0.00357283,3321.2,3321.1,0.78786]
[1762475932696,0.0813,3322.2,3321.1,0.78786]
[1762475932697,3.21231101,3321.8,3321.1,0.2998]
[1762475932901,3.21231101,3321.8,3321.7,0.78777]
[1762475933303,0.00451101,3321.8,3321.7,0.78777]
[1762475933699,0.49247101,3321.8,3321.7,0.42022]
[1762475934006,0.00835092,3321.8,3321.7,0.90819]
[1762475935006,0.49631092,3321.8,3321.7,0.42022]
[1762475935308,0.73618881,3321.8,3320.3,3.2078]
[1762475935504,0.48812,3320.7,3320.6,0.12042]
[1762475935808,3.2078,3321.1,3320.3,3.2078]
[1762475936198,0.12046,3321.0,3320.3,3.2078]
[1762475936410,0.12046,3321.0,3320.3,3.32825999]
[1762475936607,3.2078,3321.1,3320.6,0.48813]
[1762475937104,0.12046,3321.0,3320.6,0.48813]
[1762475937511,0.48812,3320.7,3320.6,0.48813]
[1762475939405,0.48807,3321.0,3320.9,0.48808]
[1762475939610,0.48808,3321.0,3320.3,3.2078]
[1762475939910,0.48808,3321.0,3320.4,0.12045999]
[1762475940112,0.48808,3321.0,3320.8,0.1819]
[1762475940308,3.2078,3321.5,3321.4,0.48802]
[1762475940614,3.2078,3321.5,3321.4,0.78782]
[1762475941114,3.2078,3321.5,3321.4,0.90824]
[1762475941607,0.00835092,3321.8,3321.7,0.78777]
[1762475941801,0.00835092,3321.8,3321.7,0.2998]
[1762475942000,0.48797,3321.7,3321.5,0.1819]
[1762475942203,0.00835092,3321.8,3321.7,0.78777]
[1762475942404,3.2078,3322.7,3321.7,0.12042]
[1762475942601,0.73046354,3322.6,3322.5,0.48785]
[1762475943111,0.73046354,3322.6,3322.1,0.48791]
[1762475943112,0.4879,3322.2,3322.1,0.48791]
[1762475943314,0.48791,3322.1,3322.0,0.1204]
[1762475943510,0.49071067,3322.1,3322.0,0.00367141]
[1762475944005,0.48796,3321.8,3321.7,0.00451814]
[1762475944205,0.48807,3321.1,3320.9,3.69589]
[1762475944410,0.48803,3321.3,3321.1,0.48806]
[1762475944800,0.48807,3321.1,3320.9,3.69588]